bitfinex/quotes_ETHUSD_20241001
["timestamp","ask_amount","ask_price","bid_price","bid_amount"]
[1727822840485,0.55,2458.2,2457.8,4.06857]
[1727822840825,0.55,2458.2,2457.7,4.06881]
[1727822841028,0.55,2458.2,2457.8,4.960278]
[1727822841826,4.61803,2458.2,2457.8,0.891688]
[1727822841981,0.55,2458.2,2457.8,4.960358]
[1727822842421,0.32280315,2458.1,2457.9,4.06848]
[1727822842674,0.32280315,2458.1,2458.0,0.4960168]
[1727822842821,0.55,2458.4,2458.0,4.5643568]
[1727822843172,0.55,2458.4,2457.9,4.06842]
[1727822843478,4.61816,2458.2,2457.7,8.13746]
[1727822843636,0.55,2458.2,2457.8,4.0686]
[1727822843996,0.32358217,2458.1,2457.8,4.0686]
[1727822844462,0.32358217,2458.1,2457.6,0.7795]
[1727822844463,0.32358217,2458.1,2458.0,4.06834]
[1727822844839,0.55,2458.3,2457.9,4.06838]
[1727822845469,0.32358217,2458.2,2457.7,4.06872]
[1727822845628,4.39159217,2458.2,2457.7,8.99524823]
[1727822845962,0.32358217,2458.2,2457.8,4.06865]
[1727822846163,0.55,2458.3,2457.7,0.85777823]
[1727822846386,0.32358217,2458.2,2457.9,4.06842]
[1727822846738,0.32358217,2458.2,2457.9,8.13684]
[1727822847066,0.32358217,2458.1,2457.9,8.13684]
[1727822847275,0.32358217,2458.1,2457.9,8.13685]
[1727822847563,0.32358217,2458.0,2457.9,8.950535]
[1727822847752,0.55,2458.3,2457.9,8.950535]
[1727822847955,0.32358217,2458.2,2457.9,4.882105]
[1727822848170,0.55,2458.3,2458.0,4.06831]
[1727822848326,0.3237557,2458.2,2458.0,4.06831]
[1727822848526,0.55,2458.3,2458.0,4.06831]
[1727822848732,0.3237557,2458.2,2458.0,4.06831]
[1727822848929,0.55,2458.3,2458.0,4.06831]
[1727822849134,0.3237557,2458.2,2458.0,4.06831]
[1727822849542,0.3237557,2458.1,2458.0,4.06831]
[1727822849743,4.61754,2458.5,2458.0,4.06831]
[1727822850071,0.55,2458.3,2458.0,4.06831]
[1727822850690,0.3237557,2458.2,2458.0,4.06831]
[1727822851014,0.55,2458.3,2458.0,4.06831]
[1727822851217,0.3237557,2458.1,2458.0,4.06831]
[1727822851422,0.55,2458.4,2458.0,4.06831]
[1727822851589,0.3237557,2458.1,2458.0,4.06831]
[1727822851793,0.55,2458.4,2458.0,4.06831]
[1727822852031,0.3237557,2458.1,2458.0,4.06831]
[1727822852248,4.61768,2458.4,2458.0,4.06831]
[1727822852401,0.3237557,2458.1,2458.0,4.06831]
[1727822852732,4.61768,2458.4,2458.0,4.87941]
[1727822852938,0.3237557,2458.1,2458.0,4.87941]
[1727822853106,4.61768,2458.4,2458.0,4.87941]
[1727822853303,0.3237557,2458.1,2458.0,4.87941]
[1727822853518,4.61768,2458.4,2458.0,4.87941]
[1727822853723,0.3237557,2458.1,2457.9,4.06842]
[1727822853895,4.06796,2458.3,2457.8,4.87976]
[1727822854091,0.3237557,2458.0,2457.8,4.87976]
[1727822854300,4.06796,2458.3,2457.9,4.06848]
[1727822854522,0.3237557,2457.9,2457.7,4.06875]
[1727822854698,0.55,2458.1,2457.7,4.06875]
[1727822855200,0.32382135,2458.0,2457.7,4.06875]
[1727822855598,0.32382135,2458.0,2457.3,0.8111]
[1727822855599,4.61853,2457.9,2457.3,0.8111]
[1727822855798,4.61853,2457.9,2457.4,4.06932]
[1727822855799,5.11276514,2457.9,2457.4,4.06932]
[1727822855997,0.32376039,2457.8,2457.4,4.06926]
[1727822856203,0.55,2457.7,2457.4,4.06926]
[1727822856431,4.9426057,2457.7,2457.3,0.8111]
[1727822856636,0.55,2457.5,2457.0,4.88096]
[1727822856953,4.06997,2457.1,2456.5,4.07076]
[1727822857114,4.06997,2457.1,2456.9,4.07016]
[1727822857115,0.55,2457.1,2456.9,4.07016]
[1727822857304,0.55,2457.2,2456.9,4.07016]
[1727822857504,0.87366659,2457.0,2456.9,4.07016]
[1727822857695,0.55,2457.0,2456.9,4.07016]
[1727822857899,0.87366659,2457.0,2456.9,4.07016]
[1727822858145,0.87366659,2457.0,2456.7,8.14073]
[1727822858328,0.87366659,2457.0,2456.5,4.07073]
[1727822858653,0.55,2456.9,2456.6,4.07063]
[1727822858942,0.55,2456.9,2456.4,8.95293]
[1727822859149,0.55,2456.9,2456.4,5.777233]
[1727822859435,0.55,2456.7,2456.4,4.966133]
[1727822859845,0.55,2456.7,2456.4,4.07084]
[1727822860002,0.55,2456.5,2456.1,0.8111]
[1727822860202,0.55,2456.5,2456.3,4.07116]
[1727822860405,0.32266717,2456.4,2456.3,4.07116]
[1727822860610,0.32266717,2456.4,2455.9,4.07173]
[1727822860611,4.39373717,2456.4,2455.9,4.07173]
[1727822860804,0.55,2456.3,2455.9,4.07173]
[1727822861105,0.87262023,2456.3,2455.8,4.88296]
[1727822861305,4.94379023,2456.3,2455.8,4.88296]
[1727822861762,0.87262023,2456.3,2455.8,4.88296]
[1727822862060,0.87262023,2456.3,2455.9,4.07173]
[1727822863318,0.87262023,2456.3,2455.8,9.443146]
[1727822863560,0.87262023,2456.3,2455.9,4.07182]
[1727822864670,0.87262023,2456.3,2455.8,5.371256]
[1727822864831,4.94379023,2456.3,2455.8,4.560156]
[1727822865042,0.87262023,2456.3,2455.9,4.07181]
[1727822867526,0.87262023,2456.3,2455.8,4.560156]
[1727822867727,0.87262023,2456.3,2456.0,4.07166]
[1727822868264,4.07181,2456.0,2455.3,0.7657]
[1727822868435,0.55,2455.9,2455.5,4.07248]
[1727822868639,0.55,2455.9,2455.4,4.07258]
[1727822868640,0.87234319,2455.9,2455.4,4.07258]
[1727822868845,0.87234319,2455.9,2455.6,4.07231]
[1727822869298,0.87234319,2455.9,2455.5,9.035828]
[1727822869669,0.87234319,2455.9,2455.5,4.963438]
[1727822870057,4.0728,2455.4,2454.9,0.7657]
[1727822870385,0.87217878,2455.3,2454.9,4.83909]
[1727822871331,0.87217878,2455.3,2454.9,0.7657]
[1727822872277,0.55,2455.1,2454.7,0.7657]
[1727822872558,0.32114525,2455.0,2454.7,4.8395]
[1727822873222,0.32114525,2455.0,2454.8,4.07362]
[1727822873706,0.32114525,2455.0,2454.7,4.83951]
[1727822874293,4.39448525,2455.0,2454.5,4.07405]
[1727822874449,0.32114525,2455.0,2454.6,7.80342234]
[1727822874853,0.32114525,2455.0,2454.8,4.07361]
[1727822875650,0.32114525,2455.0,2454.8,4.07353]
[1727822875980,3.0,2455.5,2454.9,0.7657]
[1727822875981,7.07249,2455.5,2454.9,0.7657]
[1727822876299,0.32099952,2455.4,2455.0,4.07323]
[1727822876456,0.32099952,2455.4,2455.3,7.80238234]
[1727822876657,4.07176,2456.0,2455.5,4.07243]
[1727822876983,0.31015344,2455.9,2455.5,4.07243]
[1727822877555,0.31015344,2455.9,2455.4,4.07265]
[1727822877792,0.31015344,2455.9,2455.3,4.83841]
[1727822877793,4.07199,2455.8,2455.3,4.83841]
[1727822878098,0.43819134,2455.9,2455.3,4.83841]
[1727822878310,0.31015344,2455.7,2455.4,4.07256]
[1727822878601,4.07183,2455.9,2455.4,4.07256]
[1727822878799,0.31015344,2455.8,2455.5,4.07248]
[1727822879454,0.31015344,2455.8,2455.3,8.91115]
[1727822880071,0.31015344,2455.8,2455.3,4.8384]
[1727822880279,0.31015344,2455.8,2455.4,4.07265]
[1727822880705,4.6223,2455.7,2455.1,8.9118]
[1727822880993,8.69456,2455.7,2455.1,8.91179]
[1727822881210,4.62226,2455.7,2455.2,4.07286]
[1727822881491,0.31015344,2455.6,2455.2,4.07286]
[1727822882052,0.31015344,2455.6,2455.3,4.07279]
[1727822882870,0.31015344,2455.6,2455.1,8.91175]
[1727822883076,0.31015344,2455.6,2455.2,4.07288]
[1727822883292,0.31015344,2455.6,2455.1,4.83869]
[1727822883463,0.55,2455.5,2455.1,4.83869]
[1727822883664,0.55,2455.5,2455.1,8.14606]
[1727822883903,0.55,2455.3,2454.9,4.07337]
[1727822884228,0.55,2455.3,2454.8,4.07357]
[1727822884522,0.31015344,2455.2,2454.8,4.07357]
[1727822884800,0.31015344,2455.2,2454.5,1.249675]
[1727822884801,0.55,2454.9,2454.5,4.07413]
[1727822884970,0.31015344,2454.8,2454.5,8.14813]
[1727822885173,0.31015344,2454.8,2454.5,4.074]
[1727822885366,0.31015344,2454.8,2454.7,4.07381]
[1727822885562,4.07278,2455.4,2454.7,4.83951]
[1727822885867,4.93301344,2455.3,2454.8,4.07363]
[1727822886273,4.93301344,2455.3,2454.3,3.72956234]
[1727822886274,0.55,2455.0,2454.2,0.7657]
[1727822886575,0.55,2454.8,2454.4,4.07421]
[1727822886761,0.55,2454.8,2454.2,0.7657]
[1727822886762,0.55,2454.6,2454.2,4.07455]
[1727822886955,0.55,2454.6,2453.9,0.7657]
[1727822887164,0.55,2454.4,2454.0,4.07496]
[1727822887469,1.04343934,2454.4,2453.9,4.07512]
[1727822887671,0.55,2454.2,2454.1,4.07479]
[1727822888316,0.86015344,2454.2,2453.9,8.15015]
[1727822888641,0.31015344,2454.2,2454.1,4.07481]
[1727822889124,0.55,2454.6,2454.2,4.07461]
[1727822889333,1.419766,2454.6,2454.2,4.07461]
[1727822889783,1.419766,2454.6,2454.1,4.07481]
[1727822889984,1.419766,2454.6,2453.6,4.07556]
[1727822889985,0.55,2454.1,2453.6,4.07556]
[1727822890191,4.62492,2454.1,2453.4,0.7657]
[1727822890422,4.075,2454.0,2453.5,4.07569]
[1727822890722,0.55,2453.9,2453.5,8.1514]
[1727822890929,0.55,2453.9,2453.5,4.07569]
[1727822891094,0.55,2453.9,2453.6,4.0756]
[1727822892283,4.62489,2454.1,2453.5,4.07569]
[1727822892483,5.032368,2454.1,2453.5,8.1514]
[1727822892735,5.032368,2454.1,2453.5,4.07569]
[1727822892883,0.55,2454.1,2453.5,4.07569]
[1727822893089,4.62483,2454.1,2453.5,4.07574]
[1727822893511,0.55,2454.1,2453.7,4.07546]
[1727822893827,4.07415,2454.5,2453.9,4.075]
[1727822893984,1.6397996,2454.4,2453.9,4.075]
[1727822894189,4.943846,2454.6,2454.1,4.07479]
[1727822894489,4.943846,2454.6,2454.1,4.07472]
[1727822894704,0.869766,2454.6,2454.2,4.07464]
[1727822894886,11.860731,2455.0,2454.4,4.0742]
[1727822895107,4.07359,2454.9,2454.4,4.07427]
[1727822895313,4.480731,2455.0,2454.5,4.07403]
[1727822895519,4.480731,2455.0,2454.6,4.07397]
[1727822895715,4.07276,2455.4,2454.8,4.0735]
[1727822895933,4.07284,2455.3,2454.8,4.0735]
[1727822896133,4.07276,2455.4,2454.8,8.14706]
[1727822896301,4.07351,2454.9,2454.4,4.07422]
[1727822896502,4.07362,2454.9,2454.2,8.90792]
[1727822896746,4.481031,2454.8,2454.3,4.07445]
[1727822897437,0.55,2454.7,2454.3,4.07445]
[1727822897794,0.55,2454.7,2454.0,0.7589]
[1727822897795,0.55,2454.5,2454.0,4.07482]
[1727822898037,0.55,2454.5,2454.0,4.07496]
[1727822898038,4.62424,2454.5,2454.0,4.07496]
[1727822898208,0.55,2454.3,2453.4,0.7589]
[1727822898415,0.55,2454.3,2453.8,4.07518]
[1727822898734,0.55,2454.3,2453.9,4.07502]
[1727822899135,0.55,2454.3,2453.5,3.72956234]
[1727822899378,0.55,2454.0,2453.6,4.07553]
[1727822899747,0.4536844,2454.3,2453.6,8.15106]
[1727822899748,4.62467,2454.2,2453.6,8.15106]
[1727822899946,8.69943,2454.2,2453.6,4.07553]
[1727822900157,4.62467,2454.2,2453.6,4.07553]
[1727822900584,4.62475,2454.2,2453.6,4.07548]
[1727822900754,0.55,2454.2,2453.8,4.07521]
[1727822901503,0.55,2454.2,2453.6,4.558988]
[1727822901504,0.55,2453.9,2453.4,3.72956234]
[1727822901787,0.55,2454.3,2453.9,4.07502]
[1727822901941,5.050423,2454.3,2453.9,4.07502]
[1727822902281,4.07395,2454.7,2454.2,3.72956234]
[1727822902482,0.29872907,2454.2,2453.7,0.7589]
[1727822902687,4.07414,2454.5,2453.7,4.83423]
[1727822902984,0.29872907,2454.1,2453.6,4.07561]
[1727822903281,4.07476,2454.2,2453.6,4.07561]
[1727822903282,0.29872907,2454.0,2453.6,4.07561]
[1727822903639,0.55,2453.9,2453.5,4.83461]
[1727822903976,0.29872907,2453.9,2453.6,4.07563]
[1727822904339,0.55,2453.8,2453.4,4.07591]
[1727822904585,0.55,2453.8,2453.3,4.07601]
[1727822904586,0.84877217,2453.8,2453.3,4.07601]
[1727822904750,0.84877217,2453.8,2453.1,4.0764]
[1727822904957,0.55,2453.6,2453.1,5.267576]
[1727822905306,0.55,2453.6,2453.1,4.07637]
[1727822905434,0.55,2453.6,2452.9,4.83561]
[1727822905435,0.55,2453.4,2452.9,4.83561]
[1727822905637,0.55,2453.4,2452.7,4.07705]
[1727822905975,0.55,2452.9,2452.4,4.07762]
[1727822906159,0.55,2453.4,2452.1,4.83701]
[1727822906160,0.55,2452.6,2452.1,4.83701]
[1727822906357,0.55,2452.6,2452.1,4.07803]
[1727822906600,7.80589234,2453.2,2452.0,3.72956234]
[1727822906601,0.55,2452.4,2452.0,3.72956234]
[1727822906763,0.29877217,2452.5,2452.2,3.72956234]
[1727822906936,0.55,2452.5,2452.4,7.80719234]
[1727822907135,0.55,2452.5,2452.3,4.07777]
[1727822907365,7.38,2453.0,2452.4,7.80719234]
[1727822907366,11.45665,2453.0,2452.4,7.80719234]
[1727822907567,0.55,2452.9,2452.4,4.07763]
[1727822907778,3.55,2453.0,2452.4,4.07763]
[1727822907986,4.07681,2452.9,2452.4,4.07763]
[1727822908285,4.62698,2452.8,2452.3,4.07778]
[1727822908795,4.62698,2452.8,2452.3,4.0778]
[1727822909082,0.55,2452.8,2452.3,4.0778]
[1727822909285,0.55,2452.7,2452.2,4.07794]
[1727822909498,4.62722,2452.7,2452.1,4.07803]
[1727822909638,0.55,2452.7,2452.3,4.07778]
[1727822909845,0.55,2452.7,2452.4,4.07762]
[1727822910583,0.55,2452.7,2452.3,4.07778]
[1727822910981,0.55,2452.7,2452.1,4.07802]
[1727822910982,4.0773,2452.6,2452.1,4.07802]
[1727822911407,0.55,2452.5,2452.1,4.07802]
[1727822911728,0.54959087,2452.7,2452.3,4.07779]
[1727822912041,0.55,2452.6,2452.3,4.07779]
[1727822912689,0.55,2452.9,2452.2,4.07785]
[1727822912899,0.55,2452.9,2452.6,4.0773]
[1727822913121,0.55,2453.0,2452.6,4.0773]
[1727822913291,0.55,2453.0,2452.5,4.07732]
[1727822913635,4.62665,2453.0,2452.5,4.07732]
[1727822913812,8.70342,2453.0,2452.5,4.07732]
[1727822914021,0.55,2452.8,2452.5,4.07732]
[1727822915116,0.55,2452.8,2452.5,8.1547]
[1727822915319,0.55,2453.0,2452.6,4.07728]
[1727822915840,0.55,2453.0,2452.7,4.07713]
[1727822916044,0.55,2453.0,2452.7,4.07704]
[1727822916249,11.45608,2453.4,2452.9,4.07677]
[1727822916406,4.07608,2453.4,2452.9,4.07669]
[1727822917417,3.0,2453.3,2452.9,4.07669]
[1727822917624,0.29759761,2453.3,2452.3,8.68420722]
[1727822917825,7.38,2453.8,2452.7,0.7818]
[1727822918021,0.738,2453.7,2453.3,4.07605]
[1727822918230,1.03572231,2453.7,2453.3,4.07605]
[1727822918428,1.03572231,2453.7,2453.3,8.15211]
[1727822918635,0.29772231,2453.7,2453.4,4.07583]
[1727822918847,0.29772231,2453.7,2453.5,4.07576]
[1727822919048,8.15014,2454.0,2453.5,4.07576]
[1727822919268,0.29772231,2453.6,2453.5,4.07576]
[1727822919405,4.07504,2454.0,2453.3,4.07607]
[1727822919609,0.70522631,2453.9,2453.5,4.07579]
[1727822919805,0.29772231,2453.9,2453.5,4.07579]
[1727822920114,0.55,2453.8,2453.5,4.07579]
[1727822920751,23.60474,2454.2,2453.6,4.07564]
[1727822920752,0.29772231,2453.7,2453.6,4.07564]
[1727822920909,7.38,2454.2,2453.8,4.07518]
[1727822921116,4.07439,2454.4,2453.8,8.15035]
[1727822921337,4.481829,2454.4,2453.9,4.07511]
[1727822922344,0.55,2454.3,2453.8,4.07517]
[1727822922735,0.55,2454.3,2453.8,8.15038]
[1727822923103,0.55,2454.3,2453.6,4.07551]
[1727822923309,0.55,2454.3,2453.4,4.07581]
[1727822923310,0.55,2453.9,2453.4,4.07581]
[1727822923555,5.087706,2453.9,2453.4,4.07581]
[1727822924535,4.012506,2453.9,2453.4,4.07581]
[1727822924823,4.012506,2453.9,2453.3,4.07604]
[1727822925042,4.012506,2453.9,2453.5,4.07576]
[1727822925423,7.38,2454.3,2453.8,4.07516]
[1727822925576,7.38,2454.3,2453.5,4.60642722]
[1727822925577,4.07415,2454.5,2454.0,4.07497]
[1727822925777,4.07415,2454.5,2454.1,4.0748]
[1727822926076,4.07415,2454.5,2453.9,4.07505]
[1727822926077,4.07431,2454.4,2453.9,4.07505]
[1727822926448,4.07415,2454.5,2454.0,4.07486]
[1727822926642,0.55,2454.3,2454.0,4.07486]
[1727822926974,0.55,2454.3,2453.9,4.07513]
[1727822927673,0.55,2454.4,2454.0,4.07495]
[1727822928557,8.69879,2454.4,2453.9,4.07513]
[1727822928726,8.69879,2454.4,2453.8,4.07521]
[1727822928727,4.62434,2454.4,2453.8,4.07521]
[1727822928930,0.55,2454.2,2453.8,4.07521]
[1727822929189,4.07491,2454.1,2453.5,4.0758]
[1727822929411,4.62506,2454.0,2453.5,4.0758]
[1727822932647,0.55,2453.8,2453.5,4.0758]
[1727822933027,0.55,2453.9,2453.5,4.0758]
[1727822933176,0.28851669,2453.7,2453.5,4.0758]
[1727822933340,1.419997,2453.9,2453.5,4.0758]
[1727822933544,0.28851669,2453.6,2453.5,4.0758]
[1727822933766,1.419997,2453.9,2453.5,4.0758]
[1727822933968,0.28851669,2453.6,2453.5,4.0758]
[1727822934170,1.419997,2453.9,2453.6,4.07557]
[1727822936811,4.62549,2453.7,2453.2,4.07623]
[1727822936995,0.55,2453.7,2453.3,4.076]
[1727822937285,0.55,2453.8,2453.4,4.07594]
[1727822938056,4.62531,2453.8,2453.3,4.076]
[1727822938257,5.49536,2453.8,2453.3,4.076]
[1727822939105,4.07547,2453.7,2453.1,7.81677587]
[1727822939311,0.55,2453.6,2453.2,4.0763]
[1727822940789,0.55,2453.7,2453.3,4.07603]
[1727822941473,4.62548,2453.7,2453.3,4.07603]
[1727822941679,0.55,2453.7,2453.3,8.15209]
[1727822942205,0.55,2453.7,2453.3,4.07603]
[1727822942587,4.62548,2453.7,2453.3,4.07603]
[1727822942791,5.582557,2453.7,2453.3,4.07603]
[1727822942991,5.582557,2453.7,2453.1,7.81675587]
[1727822943244,4.62548,2453.7,2453.2,4.07616]
[1727822943507,11.22337234,2454.2,2453.5,3.74041587]
[1727822943671,14.45466,2454.2,2453.7,7.81578587]
[1727822943867,14.45466,2454.2,2453.7,3.74041587]
[1727822944177,14.45466,2454.2,2453.7,7.81588587]
[1727822944178,1.94469447,2454.1,2453.7,7.81588587]
[1727822944430,14.45466,2454.2,2453.7,7.81580587]
[1727822944597,10.38,2454.2,2453.8,4.07522]
[1727822944995,7.38,2454.2,2453.8,4.07522]
[1727822945241,7.38,2454.2,2453.9,7.81555587]
[1727822945412,7.38,2454.2,2453.8,4.07519]
[1727822945620,5.220259,2454.1,2453.6,4.07551]
[1727822945809,7.38,2454.2,2453.8,4.07516]
[1727822946010,7.38,2454.2,2453.9,4.07513]
[1727822946330,7.38,2454.2,2453.7,7.81576587]
[1727822946501,0.55,2454.1,2453.9,4.07514]
[1727822946703,0.55,2454.1,2453.8,4.0753]
[1727822947537,0.28867617,2454.0,2453.8,4.8584]
[1727822947744,0.28867617,2454.0,2453.9,7.81555587]
[1727822947894,7.38,2454.2,2453.9,7.81555587]
[1727822948099,7.38,2454.2,2454.0,4.07495]
[1727822948357,0.55,2454.3,2454.0,4.07495]
[1727822948698,0.55,2454.3,2453.9,7.81553587]
[1727822948954,0.55,2454.3,2454.0,4.07493]
[1727822949805,0.55,2454.5,2454.1,7.81519587]
[1727822950345,4.0733,2455.1,2454.5,4.07403]
[1727822950671,11.4529,2455.3,2454.9,3.74041587]
[1727822950828,4.07324,2455.1,2454.7,3.74041587]
[1727822951003,5.218564,2455.1,2454.7,3.74041587]
[1727822951515,1.145324,2455.1,2454.7,7.81410587]
[1727822951710,15.52588,2455.3,2454.8,4.07362]
[1727822951711,11.45293,2455.3,2454.8,4.07362]
[1727822951929,11.45293,2455.3,2454.8,4.07354]
[1727822952126,11.45293,2455.3,2454.9,3.74041587]
[1727822952527,11.45293,2455.3,2454.9,7.81387587]
[1727822952732,3.0,2455.4,2455.1,3.74041587]
[1727822952932,4.07263,2455.5,2455.1,3.74041587]
[1727822953135,4.07247,2455.6,2455.1,3.74041587]
[1727822953331,4.479807,2455.5,2455.1,3.74041587]
[1727822953642,4.07247,2455.6,2455.1,3.74041587]
[1727822953844,7.38,2455.8,2455.3,3.74041587]
[1727822954021,7.38,2455.8,2455.3,7.81311587]
[1727822954022,11.45207,2455.8,2455.3,7.81311587]
[1727822954841,4.07216,2455.7,2455.3,3.74041587]
[1727822955122,4.07237,2455.6,2455.1,7.81355587]
[1727822955545,0.55,2455.5,2455.1,7.81355587]
[1727822956662,0.55,2455.6,2455.1,7.81355587]
[1727822956862,0.55,2455.4,2455.0,4.07321]
[1727822957923,4.62271,2455.4,2454.9,8.61871587]
[1727822960672,4.62271,2455.4,2454.7,3.74041587]
[1727822960827,4.62271,2455.4,2454.1,1.18901259]
[1727822960828,0.55,2454.9,2454.5,3.74041587]
[1727822961027,4.62351,2454.9,2454.4,4.87906]
[1727822961263,0.55,2454.9,2454.5,4.07405]
[1727822961488,0.55,2454.9,2454.4,4.87906]
[1727822961489,4.07368,2454.8,2454.4,4.87906]
[1727822961630,0.55,2454.4,2454.1,3.74041587]
[1727822961825,4.536288,2454.7,2454.4,4.07431]
[1727822961826,0.55,2454.7,2454.4,4.07431]
[1727822962568,0.28950222,2454.6,2454.5,7.81455587]
[1727822963375,0.55,2454.9,2454.5,7.81455587]
[1727822963571,0.55,2454.9,2454.6,4.07392]
[1727822965966,4.6235,2454.9,2454.5,3.74041587]
[1727822966128,9.866767,2454.9,2454.4,4.8791]
[1727822966567,5.793177,2454.9,2454.4,0.8049]
[1727822966771,0.55,2454.9,2454.5,3.74041587]
[1727822966971,0.55,2454.9,2454.5,7.81447587]
[1727822967747,4.07325,2455.1,2454.7,3.74041587]
[1727822967942,7.38,2455.4,2454.9,7.81380587]
[1727822968138,7.38,2455.4,2454.9,12.67160587]
[1727822968139,4.07268,2455.4,2454.9,12.67160587]
[1727822968347,4.07268,2455.4,2454.9,8.59820587]
[1727822969679,4.07249,2455.5,2455.1,3.74041587]
[1727822970282,0.55,2455.4,2455.1,3.74041587]
[1727822970440,4.07218,2455.7,2455.3,3.74041587]
[1727822971753,0.55,2455.6,2455.3,3.74041587]
[1727822972341,0.55,2455.5,2455.3,3.74041587]
[1727822972977,0.55,2455.5,2455.1,7.81354587]
[1727822973377,4.62254,2455.5,2455.1,3.74041587]
[1727822973877,0.55,2455.5,2455.1,3.74041587]
[1727822974083,0.55,2455.5,2455.1,7.81353587]
[1727822976198,0.55,2455.5,2455.2,4.07295]
[1727822976394,0.55,2455.5,2455.1,9.08065046]
[1727822976698,0.55,2455.5,2455.1,9.08059046]
[1727822976899,0.55,2455.3,2454.9,8.59818587]
[1727822977597,0.28999967,2455.2,2455.0,4.0733]
[1727822977756,0.55,2455.4,2454.9,8.59818587]
[1727822978104,0.55,2455.4,2455.1,3.74041587]
[1727822978502,4.62269,2455.4,2455.1,3.74041587]
[1727822978803,7.38,2455.8,2455.2,4.07284]
[1727822978804,4.0722,2455.7,2455.2,4.07284]
[1727822978994,0.55,2455.6,2455.2,8.14569]
[1727822979198,0.55,2455.6,2455.2,4.07284]
[1727822979977,0.55,2455.6,2455.1,3.74041587]
[1727822980175,0.55,2455.2,2454.9,4.52481587]
[1727822980376,4.623,2455.2,2454.7,4.52481587]
[1727822980576,0.55,2455.0,2454.7,4.52481587]
[1727822981402,0.55,2455.1,2454.7,8.59853587]
[1727822982181,4.62323,2455.1,2454.7,4.52481587]
[1727822982420,4.07333,2455.0,2454.7,4.52481587]
[1727822982724,1.419623,2455.1,2454.7,4.52481587]
[1727822982883,3.84337234,2455.7,2454.9,3.74041587]
[1727822983085,3.55,2455.4,2454.9,7.81377587]
[1727822983305,0.55,2455.4,2454.9,7.81377587]
[1727822983502,0.55,2455.3,2454.9,7.81377587]
[1727822984731,0.55,2455.3,2454.1,4.07465]
[1727822984732,4.07406,2454.6,2454.1,4.07473]
[1727822984887,4.07373,2454.8,2454.4,4.07431]
[1727822985088,0.55,2454.7,2454.4,8.63282587]
[1727822985597,4.62356,2454.9,2454.4,8.63272587]
[1727822986012,0.55,2454.9,2454.6,3.74041587]
[1727822986213,0.55,2454.9,2454.6,7.81431587]
[1727822986413,4.62333,2455.0,2454.6,7.81431587]
[1727822986615,0.55,2455.1,2454.6,7.81425587]
[1727822986814,4.62316,2455.1,2454.6,7.81425587]
[1727822987219,4.07335,2455.0,2454.6,7.81425587]
[1727822987534,0.55,2454.9,2454.6,7.81425587]
[1727822987736,0.55,2454.9,2454.6,4.07384]
[1727822987891,0.55,2455.0,2454.6,4.07384]
[1727822988096,4.07316,2455.1,2454.7,4.07372]
[1727822988690,0.55,2455.2,2454.8,4.07363]
[1727822988938,24.86767851,2455.5,2455.0,4.07331]
[1727822988939,0.55,2455.4,2455.0,4.07331]
[1727822989244,24.44599234,2455.5,2454.9,4.89158]
[1727822989245,4.07282,2455.3,2454.9,4.89158]
[1727822990045,4.07276,2455.4,2454.9,5.788101]
[1727822990212,0.55,2455.3,2454.9,5.788101]
[1727822990753,4.07276,2455.4,2454.9,5.788101]
[1727822990754,0.55,2455.4,2455.0,4.07325]
[1727822991446,4.62266,2455.4,2455.0,4.07325]
[1727822991744,4.62266,2455.4,2454.9,6.31267543]
[1727822991939,4.62266,2455.4,2454.9,10.38607543]
[1727822992141,4.07284,2455.3,2454.9,0.8181]
[1727822992341,0.28994173,2455.2,2454.9,0.8181]
[1727822992520,4.07284,2455.3,2454.9,4.89158]
[1727822992848,0.28994173,2455.2,2454.9,4.89158]
[1727822993012,0.55,2455.4,2454.9,4.89158]
[1727822993213,0.29003349,2455.1,2455.0,4.07327]
[1727822993411,1.39337234,2455.4,2454.9,5.788086]
[1727822993620,0.29003349,2455.1,2454.9,5.788006]
[1727822993944,0.29001901,2455.0,2454.9,5.788006]
[1727822994303,0.84337234,2455.4,2455.0,4.07323]
[1727822994534,0.84337234,2455.5,2455.2,0.8181]
[1727822994701,0.84337234,2455.4,2455.2,0.8181]
[1727822995128,0.84337234,2455.5,2455.2,0.8181]
[1727822995338,0.84337234,2455.5,2455.2,4.89107]
[1727822995651,0.84337234,2455.4,2455.2,4.89107]
[1727822996444,4.91604234,2455.4,2455.0,4.89133]
[1727822996623,0.84337234,2455.4,2455.0,4.89133]
[1727822997717,0.84337234,2455.3,2455.0,0.8181]
[1727822998026,0.55,2455.3,2455.0,4.8914]
[1727822998214,0.55,2455.3,2455.0,8.96463]
[1727822998415,0.55,2455.3,2455.0,5.787793]
[1727822998613,0.84337234,2455.4,2455.1,4.07306]
[1727822998821,0.84337234,2455.5,2455.2,4.07298]
[1727822999015,0.84337234,2455.5,2455.1,4.07306]
[1727822999016,0.84337234,2455.4,2455.1,4.07306]
[1727822999213,0.84337234,2455.4,2455.1,5.51896374]
[1727823000413,0.84337234,2455.4,2455.0,5.787863]
[1727823000610,4.07378,2454.8,2454.4,0.8181]
[1727823000888,0.84634429,2455.0,2454.6,4.07382]
[1727823001061,0.84634429,2455.1,2454.8,4.07354]
[1727823001906,0.84634429,2455.1,2454.8,4.89164]
[1727823002680,0.84634429,2455.1,2454.8,8.96516]
[1727823002880,0.84634429,2455.2,2455.1,4.07315]
[1727823003108,0.84634429,2455.2,2455.1,0.82279238]